[Event "Titled Tuesday Blitz December 13 Early 2022"]
[White "Rakhmanov, Aleksandr"]
[Black "Czopor, Maciej"]
[WhiteFideId "4173708"]
[BlackFideId "21805431"]
[WhiteElo "2767"]
[BlackElo "2616"]
[Result "1-0"]
[Round "09"]
[TimeControl "180+1"]
[Date "2022.12.14"]
[WhiteClock "0:02:22"]
[BlackClock "0:01:42"]

1. d4 {[%clk 0:02:52]}  Nf6 {[%clk 0:02:57]} 2. c4 {[%clk 0:02:52]}  g6 {[%clk 0:02:58]} 3. Nc3 {[%clk 0:02:51]}  Bg7 {[%clk 0:02:47]} 4. h3 {[%clk 0:02:50]}  O-O {[%clk 0:02:47]} 5. e4 {[%clk 0:02:49]}  d6 {[%clk 0:02:47]} 6. Be3 {[%clk 0:02:50]}  e5 {[%clk 0:02:46]} 7. d5 {[%clk 0:02:49]}  a5 {[%clk 0:02:46]} 8. g4 {[%clk 0:02:49]}  Na6 {[%clk 0:02:46]} 9. Nge2 {[%clk 0:02:49]}  Nc5 {[%clk 0:02:47]} 10. Ng3 {[%clk 0:02:50]}  h5 {[%clk 0:02:47]} 11. gxh5 {[%clk 0:02:48]}  c6 {[%clk 0:02:41]} 12. Rg1 {[%clk 0:02:45]}  Kh7 {[%clk 0:02:38]} 13. hxg6+ {[%clk 0:02:41]}  fxg6 {[%clk 0:02:39]} 14. Be2 {[%clk 0:02:41]}  cxd5 {[%clk 0:02:34]} 15. cxd5 {[%clk 0:02:36]}  Bd7 {[%clk 0:02:34]} 16. h4 {[%clk 0:02:36]}  b5 {[%clk 0:02:30]} 17. h5 {[%clk 0:02:36]}  b4 {[%clk 0:02:20]} 18. hxg6+ {[%clk 0:02:36]}  Kg8 {[%clk 0:02:21]} 19. Bxc5 {[%clk 0:02:24]}  bxc3 {[%clk 0:02:18]} 20. Bxd6 {[%clk 0:02:24]}  cxb2 {[%clk 0:02:18]} 21. Rb1 {[%clk 0:02:23]}  Qb6 {[%clk 0:02:08]} 22. Bxf8 {[%clk 0:02:23]}  Rxf8 {[%clk 0:02:09]} 23. Qb3 {[%clk 0:02:22]}  Qa7 {[%clk 0:01:42]} 24. d6+ {[%clk 0:02:22]} 1-0


[Site "https://www.chess.com"]

[Event "Titled Tuesday Blitz December 13 Early 2022"]
[White "Rakhmatullaev, Almas"]
[Black "Aldokhin, Ivan"]
[WhiteFideId "14205793"]
[BlackFideId "24115720"]
[WhiteElo "2744"]
[BlackElo "2603"]
[Result "1-0"]
[Round "09"]
[TimeControl "180+1"]
[Date "2022.12.14"]
[WhiteClock "0:00:08"]
[BlackClock "0:00:03"]

1. e4 {[%clk 0:03:00]}  c5 {[%clk 0:03:00]} 2. c3 {[%clk 0:03:01]}  e6 {[%clk 0:03:00]} 3. Nf3 {[%clk 0:02:57]}  Nc6 {[%clk 0:02:59]} 4. d4 {[%clk 0:02:55]}  cxd4 {[%clk 0:02:59]} 5. cxd4 {[%clk 0:02:56]}  d5 {[%clk 0:02:59]} 6. e5 {[%clk 0:02:54]}  Nge7 {[%clk 0:02:58]} 7. Bd3 {[%clk 0:02:45]}  Nf5 {[%clk 0:02:55]} 8. Bxf5 {[%clk 0:02:44]}  exf5 {[%clk 0:02:54]} 9. O-O {[%clk 0:02:44]}  Be7 {[%clk 0:02:53]} 10. Nc3 {[%clk 0:02:44]}  Be6 {[%clk 0:02:41]} 11. Qb3 {[%clk 0:02:42]}  Rb8 {[%clk 0:02:32]} 12. Be3 {[%clk 0:02:36]}  g5 {[%clk 0:02:31]} 13. g3 {[%clk 0:02:03]}  Rg8 {[%clk 0:02:26]} 14. Kh1 {[%clk 0:01:45]}  Qd7 {[%clk 0:02:25]} 15. Rg1 {[%clk 0:01:30]}  h5 {[%clk 0:02:08]} 16. Rae1 {[%clk 0:01:06]}  b5 {[%clk 0:01:16]} 17. Ne2 {[%clk 0:00:40]}  Na5 {[%clk 0:01:07]} 18. Qd1 {[%clk 0:00:35]}  Nc4 {[%clk 0:01:03]} 19. Bc1 {[%clk 0:00:35]}  b4 {[%clk 0:00:47]} 20. b3 {[%clk 0:00:35]}  Na5 {[%clk 0:00:45]} 21. h4 {[%clk 0:00:35]}  f4 {[%clk 0:00:38]} 22. gxf4 {[%clk 0:00:18]}  Bg4 {[%clk 0:00:31]} 23. Nh2 {[%clk 0:00:12]}  Qf5 {[%clk 0:00:16]} 24. f3 {[%clk 0:00:10]}  Bh3 {[%clk 0:00:12]} 25. Ng3 {[%clk 0:00:08]}  Qd7 {[%clk 0:00:12]} 26. fxg5 {[%clk 0:00:07]}  Rc8 {[%clk 0:00:07]} 27. Nxh5 {[%clk 0:00:06]}  Rc3 {[%clk 0:00:06]} 28. Nf6+ {[%clk 0:00:06]}  Bxf6 {[%clk 0:00:06]} 29. exf6+ {[%clk 0:00:07]}  Be6 {[%clk 0:00:07]} 30. Bf4 {[%clk 0:00:07]}  Qc6 {[%clk 0:00:04]} 31. g6 {[%clk 0:00:06]}  Rxg6 {[%clk 0:00:03]} 32. Rxg6 {[%clk 0:00:06]}  fxg6 {[%clk 0:00:04]} 33. Qe2 {[%clk 0:00:06]}  Kf7 {[%clk 0:00:05]} 34. Ng4 {[%clk 0:00:05]}  Rc2 {[%clk 0:00:02]} 35. Ne5+ {[%clk 0:00:05]}  Kxf6 {[%clk 0:00:03]} 36. Bg5+ {[%clk 0:00:04]}  Kg7 {[%clk 0:00:03]} 37. Nxc6 {[%clk 0:00:04]}  Rxe2 {[%clk 0:00:03]} 38. Rxe2 {[%clk 0:00:05]}  Nxc6 {[%clk 0:00:03]} 39. Rxe6 {[%clk 0:00:05]}  Nxd4 {[%clk 0:00:04]} 40. Re7+ {[%clk 0:00:05]}  Kf8 {[%clk 0:00:04]} 41. Rxa7 {[%clk 0:00:04]}  Nxf3 {[%clk 0:00:05]} 42. Be7+ {[%clk 0:00:04]}  Kf7 {[%clk 0:00:04]} 43. Bxb4+ {[%clk 0:00:05]}  Ke6 {[%clk 0:00:05]} 44. Bc5 {[%clk 0:00:06]}  d4 {[%clk 0:00:05]} 45. Ra6+ {[%clk 0:00:06]}  Kd5 {[%clk 0:00:05]} 46. Bxd4 {[%clk 0:00:06]}  Kxd4 {[%clk 0:00:02]} 47. Rxg6 {[%clk 0:00:07]}  Nxh4 {[%clk 0:00:03]} 48. Rg4+ {[%clk 0:00:07]}  Kc3 {[%clk 0:00:03]} 49. Rxh4 {[%clk 0:00:08]} 1-0


[Site "https://www.chess.com"]

[Event "Titled Tuesday Blitz December 13 Early 2022"]
[White "Ramu, K."]
[Black "La Villa Rivas, Marlon Javier"]
[WhiteFideId "5006171"]
[BlackFideId "3519546"]
[WhiteElo "2156"]
[BlackElo "2135"]
[Result "1-0"]
[Round "09"]
[TimeControl "180+1"]
[Date "2022.12.14"]
[WhiteClock "0:00:26"]
[BlackClock "0:01:10"]

1. e4 {[%clk 0:02:45]}  c5 {[%clk 0:02:59]} 2. Nf3 {[%clk 0:02:45]}  Nc6 {[%clk 0:02:59]} 3. d3 {[%clk 0:02:45]}  d6 {[%clk 0:02:59]} 4. g3 {[%clk 0:02:46]}  g6 {[%clk 0:02:59]} 5. Bg2 {[%clk 0:02:46]}  Bg7 {[%clk 0:02:59]} 6. O-O {[%clk 0:02:47]}  e5 {[%clk 0:03:00]} 7. c3 {[%clk 0:02:44]}  Nge7 {[%clk 0:03:00]} 8. a3 {[%clk 0:02:37]}  O-O {[%clk 0:02:59]} 9. b4 {[%clk 0:02:37]}  b6 {[%clk 0:02:53]} 10. Be3 {[%clk 0:02:37]}  h6 {[%clk 0:02:51]} 11. b5 {[%clk 0:02:34]}  Nb8 {[%clk 0:02:50]} 12. d4 {[%clk 0:02:34]}  Nd7 {[%clk 0:02:49]} 13. Nbd2 {[%clk 0:02:28]}  f5 {[%clk 0:02:47]} 14. dxc5 {[%clk 0:02:23]}  bxc5 {[%clk 0:02:44]} 15. exf5 {[%clk 0:02:20]}  gxf5 {[%clk 0:02:44]} 16. Nc4 {[%clk 0:02:12]}  d5 {[%clk 0:02:38]} 17. Nd6 {[%clk 0:01:59]}  e4 {[%clk 0:02:32]} 18. Nh4 {[%clk 0:01:52]}  Bxc3 {[%clk 0:02:29]} 19. Bxh6 {[%clk 0:01:47]}  Bg7 {[%clk 0:02:28]} 20. Qh5 {[%clk 0:01:42]}  Bxh6 {[%clk 0:02:11]} 21. Qxh6 {[%clk 0:01:40]}  Nf6 {[%clk 0:02:08]} 22. Qg5+ {[%clk 0:01:35]}  Kh7 {[%clk 0:02:02]} 23. Ndxf5 {[%clk 0:01:34]}  Nxf5 {[%clk 0:01:59]} 24. Qg6+ {[%clk 0:01:31]}  Kh8 {[%clk 0:01:58]} 25. Nxf5 {[%clk 0:01:31]}  Qd7 {[%clk 0:01:48]} 26. Ne3 {[%clk 0:01:11]}  Qg7 {[%clk 0:01:41]} 27. Qxg7+ {[%clk 0:01:07]}  Kxg7 {[%clk 0:01:42]} 28. Rac1 {[%clk 0:00:59]}  d4 {[%clk 0:01:38]} 29. Nc4 {[%clk 0:00:58]}  Be6 {[%clk 0:01:35]} 30. Nd6 {[%clk 0:00:57]}  Bd5 {[%clk 0:01:33]} 31. Rxc5 {[%clk 0:00:56]}  Rad8 {[%clk 0:01:33]} 32. Nf5+ {[%clk 0:00:53]}  Kf7 {[%clk 0:01:30]} 33. Nxd4 {[%clk 0:00:53]}  Ba8 {[%clk 0:01:26]} 34. Nc6 {[%clk 0:00:51]}  Rd2 {[%clk 0:01:26]} 35. Nxa7 {[%clk 0:00:45]}  e3 {[%clk 0:01:26]} 36. Bxa8 {[%clk 0:00:41]}  e2 {[%clk 0:01:26]} 37. Re1 {[%clk 0:00:40]}  Rd1 {[%clk 0:01:25]} 38. Rc1 {[%clk 0:00:39]}  Rxa8 {[%clk 0:01:21]} 39. Rcxd1 {[%clk 0:00:38]}  exd1=Q {[%clk 0:01:20]} 40. Rxd1 {[%clk 0:00:39]}  Rxa7 {[%clk 0:01:21]} 41. Rd3 {[%clk 0:00:37]}  Ra5 {[%clk 0:01:19]} 42. Rb3 {[%clk 0:00:37]}  Nd7 {[%clk 0:01:19]} 43. b6 {[%clk 0:00:37]}  Ke6 {[%clk 0:01:19]} 44. b7 {[%clk 0:00:36]}  Nb8 {[%clk 0:01:19]} 45. h4 {[%clk 0:00:35]}  Kf5 {[%clk 0:01:19]} 46. Kg2 {[%clk 0:00:35]}  Rc5 {[%clk 0:01:18]} 47. Rb4 {[%clk 0:00:33]}  Rc3 {[%clk 0:01:18]} 48. g4+ {[%clk 0:00:32]}  Ke5 {[%clk 0:01:16]} 49. a4 {[%clk 0:00:33]}  Rc6 {[%clk 0:01:11]} 50. h5 {[%clk 0:00:30]}  Kf6 {[%clk 0:01:10]} 51. Kg3 {[%clk 0:00:29]}  Rc3+ {[%clk 0:01:11]} 52. f3 {[%clk 0:00:29]}  Kg5 {[%clk 0:01:10]} 53. Rb5+ {[%clk 0:00:27]}  Kf6 {[%clk 0:01:10]} 54. g5+ {[%clk 0:00:26]}  Kg7 {[%clk 0:01:10]} 55. a5 {[%clk 0:00:26]} 1-0


[Site "https://www.chess.com"]

[Event "Titled Tuesday Blitz December 13 Early 2022"]
[White "Rodriguez Fontecha, Marcos"]
[Black "Khoroshev, Nikita"]
[WhiteFideId "2256576"]
[BlackFideId "14200287"]
[WhiteElo "2263"]
[BlackElo "2354"]
[Result "0-1"]
[Round "09"]
[TimeControl "180+1"]
[Date "2022.12.14"]
[WhiteClock "0:00:07"]
[BlackClock "0:00:45"]

1. Nf3 {[%clk 0:03:00]}  Nf6 {[%clk 0:02:59]} 2. d4 {[%clk 0:03:00]}  g6 {[%clk 0:02:59]} 3. Bf4 {[%clk 0:02:59]}  Bg7 {[%clk 0:02:58]} 4. Nc3 {[%clk 0:03:00]}  d6 {[%clk 0:02:56]} 5. Qd2 {[%clk 0:03:01]}  c6 {[%clk 0:02:53]} 6. Bh6 {[%clk 0:03:00]}  O-O {[%clk 0:02:53]} 7. h4 {[%clk 0:03:00]}  Bg4 {[%clk 0:02:50]} 8. O-O-O {[%clk 0:02:59]}  Qa5 {[%clk 0:02:49]} 9. Kb1 {[%clk 0:02:52]}  b5 {[%clk 0:02:47]} 10. Nd5 {[%clk 0:02:16]}  Qxd2 {[%clk 0:02:14]} 11. Nxf6+ {[%clk 0:02:14]}  Bxf6 {[%clk 0:02:13]} 12. Nxd2 {[%clk 0:02:03]}  Rc8 {[%clk 0:02:02]} 13. f3 {[%clk 0:02:03]}  Be6 {[%clk 0:02:00]} 14. Bg5 {[%clk 0:01:59]}  Nd7 {[%clk 0:01:59]} 15. Ne4 {[%clk 0:01:56]}  Bxg5 {[%clk 0:01:58]} 16. Nxg5 {[%clk 0:01:52]}  Nf8 {[%clk 0:01:53]} 17. Nxe6 {[%clk 0:01:50]}  Nxe6 {[%clk 0:01:52]} 18. e4 {[%clk 0:01:49]}  a6 {[%clk 0:01:52]} 19. h5 {[%clk 0:01:48]}  Kg7 {[%clk 0:01:50]} 20. e5 {[%clk 0:01:38]}  dxe5 {[%clk 0:01:46]} 21. dxe5 {[%clk 0:01:39]}  Rd8 {[%clk 0:01:46]} 22. h6+ {[%clk 0:01:38]}  Kf8 {[%clk 0:01:46]} 23. Bd3 {[%clk 0:01:30]}  c5 {[%clk 0:01:19]} 24. Be4 {[%clk 0:01:28]}  Rab8 {[%clk 0:01:19]} 25. Kc1 {[%clk 0:01:19]}  f5 {[%clk 0:01:12]} 26. exf6 {[%clk 0:01:08]}  exf6 {[%clk 0:01:13]} 27. Rxd8+ {[%clk 0:00:50]}  Rxd8 {[%clk 0:01:14]} 28. Rd1 {[%clk 0:00:50]}  Rxd1+ {[%clk 0:01:08]} 29. Kxd1 {[%clk 0:00:50]}  Nd8 {[%clk 0:01:03]} 30. g4 {[%clk 0:00:47]}  Nf7 {[%clk 0:01:02]} 31. Bb7 {[%clk 0:00:46]}  a5 {[%clk 0:01:02]} 32. Ke2 {[%clk 0:00:37]}  Nxh6 {[%clk 0:01:01]} 33. Bc6 {[%clk 0:00:36]}  b4 {[%clk 0:01:01]} 34. Kd3 {[%clk 0:00:35]}  Ke7 {[%clk 0:01:00]} 35. Kc4 {[%clk 0:00:31]}  Kd6 {[%clk 0:01:00]} 36. Kb5 {[%clk 0:00:31]}  Nf7 {[%clk 0:00:58]} 37. Be4 {[%clk 0:00:27]}  Ng5 {[%clk 0:00:58]} 38. Ba8 {[%clk 0:00:25]}  Ne6 {[%clk 0:00:51]} 39. f4 {[%clk 0:00:17]}  Nc7+ {[%clk 0:00:47]} 40. Kxa5 {[%clk 0:00:15]}  Nxa8 {[%clk 0:00:47]} 41. g5 {[%clk 0:00:10]}  fxg5 {[%clk 0:00:44]} 42. fxg5 {[%clk 0:00:11]}  Kc6 {[%clk 0:00:44]} 43. a4 {[%clk 0:00:09]}  bxa3 {[%clk 0:00:45]} 44. bxa3 {[%clk 0:00:09]}  Nc7 {[%clk 0:00:45]} 45. a4 {[%clk 0:00:08]}  Ne6 {[%clk 0:00:45]} 46. Ka6 {[%clk 0:00:09]}  Nxg5 {[%clk 0:00:45]} 47. a5 {[%clk 0:00:08]}  Ne6 {[%clk 0:00:45]} 48. Ka7 {[%clk 0:00:07]}  Nc7 {[%clk 0:00:45]} 0-1


[Site "https://www.chess.com"]

[Event "Titled Tuesday Blitz December 13 Early 2022"]
[White "Royal, Shreyas"]
[Black "Domingo Nunez, Ruben"]
[WhiteFideId "448869"]
[BlackFideId "22245570"]
[WhiteElo "2331"]
[BlackElo "2406"]
[Result "0-1"]
[Round "09"]
[TimeControl "180+1"]
[Date "2022.12.14"]
[WhiteClock "0:01:18"]
[BlackClock "0:01:28"]

1. e4 {[%clk 0:03:00]}  a6 {[%clk 0:02:58]} 2. d4 {[%clk 0:02:58]}  h6 {[%clk 0:02:58]} 3. Bc4 {[%clk 0:02:57]}  e6 {[%clk 0:02:58]} 4. Nf3 {[%clk 0:02:57]}  b5 {[%clk 0:02:58]} 5. Bb3 {[%clk 0:02:57]}  Bb7 {[%clk 0:02:58]} 6. Nbd2 {[%clk 0:02:57]}  c5 {[%clk 0:02:59]} 7. c3 {[%clk 0:02:52]}  Nc6 {[%clk 0:02:59]} 8. O-O {[%clk 0:02:52]}  Nf6 {[%clk 0:02:55]} 9. a4 {[%clk 0:02:51]}  Qb6 {[%clk 0:02:52]} 10. e5 {[%clk 0:02:49]}  Nh7 {[%clk 0:02:44]} 11. dxc5 {[%clk 0:02:46]}  Bxc5 {[%clk 0:02:42]} 12. Ne4 {[%clk 0:02:46]}  Be7 {[%clk 0:02:32]} 13. Be3 {[%clk 0:02:43]}  Qc7 {[%clk 0:02:33]} 14. Nd6+ {[%clk 0:02:43]}  Bxd6 {[%clk 0:02:33]} 15. exd6 {[%clk 0:02:44]}  Qb8 {[%clk 0:02:34]} 16. Bb6 {[%clk 0:02:39]}  O-O {[%clk 0:02:26]} 17. Qd3 {[%clk 0:02:33]}  b4 {[%clk 0:02:22]} 18. Bc2 {[%clk 0:02:29]}  f5 {[%clk 0:02:20]} 19. Bc7 {[%clk 0:02:25]}  Qe8 {[%clk 0:02:20]} 20. Rae1 {[%clk 0:02:12]}  Qg6 {[%clk 0:02:18]} 21. Kh1 {[%clk 0:02:05]}  Nf6 {[%clk 0:02:09]} 22. Qc4 {[%clk 0:01:55]}  a5 {[%clk 0:02:08]} 23. Nh4 {[%clk 0:01:46]}  Qg5 {[%clk 0:01:56]} 24. Nf3 {[%clk 0:01:42]}  Qh5 {[%clk 0:01:56]} 25. Qf4 {[%clk 0:01:41]}  g5 {[%clk 0:01:37]} 26. Qe3 {[%clk 0:01:31]}  Ng4 {[%clk 0:01:34]} 27. Qd2 {[%clk 0:01:30]}  Nce5 {[%clk 0:01:33]} 28. Rxe5 {[%clk 0:01:17]}  Bxf3 {[%clk 0:01:33]} 29. h3 {[%clk 0:01:18]}  Qxh3+ {[%clk 0:01:28]} 0-1


[Site "https://www.chess.com"]

[Event "Titled Tuesday Blitz December 13 Early 2022"]
[White "Sadubayev, Airat"]
[Black "Kuzmin, Roman"]
[WhiteFideId "13713264"]
[BlackFideId "44134932"]
[WhiteElo "2160"]
[BlackElo "2180"]
[Result "1/2-1/2"]
[Round "09"]
[TimeControl "180+1"]
[Date "2022.12.14"]
[WhiteClock "0:00:04"]
[BlackClock "0:00:04"]

1. d4 {[%clk 0:02:59]}  Nf6 {[%clk 0:02:59]} 2. c4 {[%clk 0:02:59]}  e6 {[%clk 0:02:59]} 3. Nf3 {[%clk 0:02:59]}  d5 {[%clk 0:03:00]} 4. g3 {[%clk 0:02:59]}  Be7 {[%clk 0:03:00]} 5. Bg2 {[%clk 0:02:59]}  O-O {[%clk 0:03:00]} 6. O-O {[%clk 0:02:59]}  Nbd7 {[%clk 0:03:01]} 7. Nbd2 {[%clk 0:02:51]}  c6 {[%clk 0:03:00]} 8. Qc2 {[%clk 0:02:50]}  b6 {[%clk 0:03:00]} 9. e4 {[%clk 0:02:49]}  dxc4 {[%clk 0:03:01]} 10. Nxc4 {[%clk 0:02:47]}  Bb7 {[%clk 0:03:01]} 11. Nfe5 {[%clk 0:02:36]}  c5 {[%clk 0:02:59]} 12. Nxd7 {[%clk 0:02:32]}  Qxd7 {[%clk 0:03:00]} 13. dxc5 {[%clk 0:02:30]}  Bxc5 {[%clk 0:02:57]} 14. Bg5 {[%clk 0:02:26]}  Rac8 {[%clk 0:02:56]} 15. Rac1 {[%clk 0:02:18]}  b5 {[%clk 0:02:51]} 16. Ne5 {[%clk 0:02:16]}  Qd6 {[%clk 0:02:27]} 17. Bxf6 {[%clk 0:02:14]}  gxf6 {[%clk 0:02:27]} 18. Ng4 {[%clk 0:02:13]}  Qe7 {[%clk 0:01:54]} 19. Qd2 {[%clk 0:02:07]}  h5 {[%clk 0:01:51]} 20. Nxf6+ {[%clk 0:01:12]}  Qxf6 {[%clk 0:01:46]} 21. e5 {[%clk 0:01:12]}  Qxe5 {[%clk 0:01:29]} 22. Bxb7 {[%clk 0:01:10]}  Rc7 {[%clk 0:01:19]} 23. Bf3 {[%clk 0:01:03]}  Rfc8 {[%clk 0:01:18]} 24. Kg2 {[%clk 0:00:51]}  Kg7 {[%clk 0:00:54]} 25. Rfe1 {[%clk 0:00:48]}  Qf5 {[%clk 0:00:46]} 26. Qe2 {[%clk 0:00:44]}  h4 {[%clk 0:00:35]} 27. Be4 {[%clk 0:00:44]}  Qg5 {[%clk 0:00:28]} 28. Rc2 {[%clk 0:00:39]}  Bb6 {[%clk 0:00:22]} 29. Rxc7 {[%clk 0:00:30]}  Rxc7 {[%clk 0:00:23]} 30. b3 {[%clk 0:00:26]}  Rd7 {[%clk 0:00:20]} 31. Qf3 {[%clk 0:00:22]}  Rd2 {[%clk 0:00:18]} 32. Re2 {[%clk 0:00:22]}  Rxe2 {[%clk 0:00:16]} 33. Qxe2 {[%clk 0:00:22]}  hxg3 {[%clk 0:00:15]} 34. hxg3 {[%clk 0:00:22]}  Qe5 {[%clk 0:00:14]} 35. Qf3 {[%clk 0:00:19]}  b4 {[%clk 0:00:13]} 36. Bd3 {[%clk 0:00:16]}  Qd4 {[%clk 0:00:12]} 37. Bc4 {[%clk 0:00:16]}  Qf6 {[%clk 0:00:11]} 38. Qe2 {[%clk 0:00:15]}  Qf5 {[%clk 0:00:10]} 39. Bd3 {[%clk 0:00:14]}  Qd5+ {[%clk 0:00:09]} 40. Be4 {[%clk 0:00:15]}  Qd4 {[%clk 0:00:09]} 41. Qg4+ {[%clk 0:00:14]}  Kf8 {[%clk 0:00:09]} 42. Qf3 {[%clk 0:00:14]}  Ke7 {[%clk 0:00:10]} 43. Bd3 {[%clk 0:00:14]}  Qc5 {[%clk 0:00:07]} 44. Bc4 {[%clk 0:00:14]}  Qd4 {[%clk 0:00:07]} 45. Qb7+ {[%clk 0:00:13]}  Kf6 {[%clk 0:00:06]} 46. Qf3+ {[%clk 0:00:13]}  Ke7 {[%clk 0:00:07]} 47. Qe2 {[%clk 0:00:12]}  Qc5 {[%clk 0:00:03]} 48. Qd2 {[%clk 0:00:12]}  Qd4 {[%clk 0:00:03]} 49. Qg5+ {[%clk 0:00:12]}  Qf6 {[%clk 0:00:02]} 50. Qd2 {[%clk 0:00:09]}  Qe5 {[%clk 0:00:02]} 51. Qc2 {[%clk 0:00:08]}  Qc5 {[%clk 0:00:02]} 52. Kf1 {[%clk 0:00:07]}  Qc6 {[%clk 0:00:02]} 53. Kg1 {[%clk 0:00:07]}  Kd7 {[%clk 0:00:02]} 54. Qe2 {[%clk 0:00:06]}  Ke7 {[%clk 0:00:02]} 55. Qd2 {[%clk 0:00:04]}  Qc5 {[%clk 0:00:03]} 56. Kg2 {[%clk 0:00:04]}  a5 {[%clk 0:00:04]} 57. Qe2 {[%clk 0:00:04]}  Qc6+ {[%clk 0:00:05]} 58. Kh2 {[%clk 0:00:03]}  Qc5 {[%clk 0:00:05]} 59. Kg1 {[%clk 0:00:04]}  Qc6 {[%clk 0:00:06]} 60. Qg4 {[%clk 0:00:04]}  Qc5 {[%clk 0:00:05]} 61. Qf3 {[%clk 0:00:03]}  Qc7 {[%clk 0:00:05]} 62. Kg2 {[%clk 0:00:04]}  Qe5 {[%clk 0:00:05]} 63. Qb7+ {[%clk 0:00:04]}  Qc7 {[%clk 0:00:06]} 64. Qe4 {[%clk 0:00:05]}  Qc5 {[%clk 0:00:06]} 65. Qh4+ {[%clk 0:00:05]}  Kd7 {[%clk 0:00:05]} 66. Qf4 {[%clk 0:00:06]}  Ke7 {[%clk 0:00:05]} 67. Bd3 {[%clk 0:00:05]}  Qd5+ {[%clk 0:00:04]} 68. Be4 {[%clk 0:00:05]}  Qd4 {[%clk 0:00:04]} 69. Qg5+ {[%clk 0:00:05]}  Kd7 {[%clk 0:00:04]} 70. Qf4 {[%clk 0:00:06]}  Ke7 {[%clk 0:00:04]} 71. Qf3 {[%clk 0:00:06]}  Qf6 {[%clk 0:00:04]} 72. Qe2 {[%clk 0:00:06]}  Qd4 {[%clk 0:00:04]} 73. Qc2 {[%clk 0:00:06]}  Qc5 {[%clk 0:00:04]} 74. Qd2 {[%clk 0:00:06]}  Qd4 {[%clk 0:00:05]} 75. Bd3 {[%clk 0:00:06]}  Qc5 {[%clk 0:00:04]} 76. Qe2 {[%clk 0:00:06]}  Qd5+ {[%clk 0:00:05]} 77. Be4 {[%clk 0:00:07]}  Qd4 {[%clk 0:00:05]} 78. Bf3 {[%clk 0:00:07]}  Qc5 {[%clk 0:00:05]} 79. g4 {[%clk 0:00:07]}  Qd4 {[%clk 0:00:05]} 80. Qc2 {[%clk 0:00:06]}  Qd6 {[%clk 0:00:05]} 81. g5 {[%clk 0:00:06]}  Bc7 {[%clk 0:00:05]} 82. g6 {[%clk 0:00:05]}  Qh2+ {[%clk 0:00:05]} 83. Kf1 {[%clk 0:00:06]}  fxg6 {[%clk 0:00:04]} 84. Qxg6 {[%clk 0:00:06]}  Bb6 {[%clk 0:00:04]} 85. Qg7+ {[%clk 0:00:06]}  Kd6 {[%clk 0:00:04]} 86. Qf8+ {[%clk 0:00:06]}  Kd7 {[%clk 0:00:02]} 87. Qf7+ {[%clk 0:00:06]}  Kd6 {[%clk 0:00:02]} 88. Qf8+ {[%clk 0:00:06]}  Kd7 {[%clk 0:00:03]} 89. Bg2 {[%clk 0:00:07]}  Qe5 {[%clk 0:00:02]} 90. Qa8 {[%clk 0:00:02]}  Qa1+ {[%clk 0:00:02]} 91. Ke2 {[%clk 0:00:03]}  Qxa2+ {[%clk 0:00:03]} 92. Kd1 {[%clk 0:00:03]}  Qxf2 {[%clk 0:00:03]} 93. Qc6+ {[%clk 0:00:03]}  Ke7 {[%clk 0:00:03]} 94. Qb7+ {[%clk 0:00:03]}  Kf6 {[%clk 0:00:03]} 95. Bf3 {[%clk 0:00:04]}  Qd4+ {[%clk 0:00:03]} 96. Ke1 {[%clk 0:00:04]}  Qe3+ {[%clk 0:00:03]} 97. Kd1 {[%clk 0:00:04]}  Qxb3+ {[%clk 0:00:03]} 98. Ke2 {[%clk 0:00:05]}  Qe3+ {[%clk 0:00:03]} 99. Kd1 {[%clk 0:00:06]}  Qd3+ {[%clk 0:00:04]} 100. Ke1 {[%clk 0:00:06]}  Bd4 {[%clk 0:00:04]} 101. Be4 {[%clk 0:00:05]}  Qe3+ {[%clk 0:00:04]} 102. Kd1 {[%clk 0:00:05]}  Bc3 {[%clk 0:00:05]} 103. Kc2 {[%clk 0:00:05]}  Qd2+ {[%clk 0:00:05]} 104. Kb3 {[%clk 0:00:06]}  Qb2+ {[%clk 0:00:05]} 105. Kc4 {[%clk 0:00:07]}  a4 {[%clk 0:00:05]} 106. Qa8 {[%clk 0:00:07]}  Qe2+ {[%clk 0:00:04]} 107. Kc5 {[%clk 0:00:07]}  Qe3+ {[%clk 0:00:04]} 108. Kb5 {[%clk 0:00:07]}  a3 {[%clk 0:00:04]} 109. Qh8+ {[%clk 0:00:06]}  Ke7 {[%clk 0:00:03]} 110. Qh7+ {[%clk 0:00:07]}  Kd6 {[%clk 0:00:04]} 111. Qh2+ {[%clk 0:00:07]}  Be5 {[%clk 0:00:03]} 112. Qc2 {[%clk 0:00:08]}  Qc3 {[%clk 0:00:03]} 113. Qd1+ {[%clk 0:00:08]}  Bd4 {[%clk 0:00:03]} 114. Qg4 {[%clk 0:00:05]}  a2 {[%clk 0:00:03]} 115. Qf4+ {[%clk 0:00:05]}  Be5 {[%clk 0:00:03]} 116. Qf8+ {[%clk 0:00:06]}  Kc7 {[%clk 0:00:03]} 117. Qe7+ {[%clk 0:00:06]}  Kc8 {[%clk 0:00:03]} 118. Qe8+ {[%clk 0:00:04]}  Kc7 {[%clk 0:00:04]} 119. Qe7+ {[%clk 0:00:04]}  Kc8 {[%clk 0:00:04]} 120. Qe8+ {[%clk 0:00:04]}  Kc7 {[%clk 0:00:04]} 121. Qe7+ {[%clk 0:00:04]} 1/2-1/2


[Site "https://www.chess.com"]

[Event "Titled Tuesday Blitz December 13 Early 2022"]
[White "Salman, Pavel"]
[Black "Colas, Joshua"]
[WhiteFideId "24153753"]
[BlackFideId "2044447"]
[WhiteElo "2187"]
[BlackElo "2347"]
[Result "1-0"]
[Round "09"]
[TimeControl "180+1"]
[Date "2022.12.14"]
[WhiteClock "0:00:10"]
[BlackClock "0:01:40"]

1. Nf3 {[%clk 0:03:00]}  d5 {[%clk 0:02:52]} 2. g3 {[%clk 0:03:00]}  Nf6 {[%clk 0:02:53]} 3. Bg2 {[%clk 0:03:01]}  e6 {[%clk 0:02:53]} 4. O-O {[%clk 0:03:01]}  Be7 {[%clk 0:02:54]} 5. d3 {[%clk 0:03:02]}  O-O {[%clk 0:02:55]} 6. Nbd2 {[%clk 0:03:03]}  Nc6 {[%clk 0:02:56]} 7. e4 {[%clk 0:03:03]}  dxe4 {[%clk 0:02:56]} 8. dxe4 {[%clk 0:03:04]}  e5 {[%clk 0:02:57]} 9. Qe2 {[%clk 0:03:02]}  Nd4 {[%clk 0:02:52]} 10. Nxd4 {[%clk 0:02:52]}  Qxd4 {[%clk 0:02:53]} 11. c3 {[%clk 0:02:50]}  Qc5 {[%clk 0:02:47]} 12. Nb3 {[%clk 0:02:46]}  Qc6 {[%clk 0:02:44]} 13. Bg5 {[%clk 0:02:33]}  a5 {[%clk 0:02:42]} 14. a4 {[%clk 0:02:26]}  b6 {[%clk 0:02:32]} 15. Rfd1 {[%clk 0:02:13]}  h6 {[%clk 0:02:29]} 16. Bxf6 {[%clk 0:02:13]}  Bxf6 {[%clk 0:02:28]} 17. Qb5 {[%clk 0:02:05]}  Qxb5 {[%clk 0:02:26]} 18. axb5 {[%clk 0:02:05]}  Be6 {[%clk 0:02:27]} 19. Nd2 {[%clk 0:02:03]}  Rfd8 {[%clk 0:02:25]} 20. Bf1 {[%clk 0:01:47]}  Be7 {[%clk 0:02:17]} 21. Be2 {[%clk 0:01:43]}  Bc5 {[%clk 0:02:12]} 22. Kg2 {[%clk 0:01:42]}  Kf8 {[%clk 0:02:12]} 23. h3 {[%clk 0:01:37]}  Ke7 {[%clk 0:02:13]} 24. Nf3 {[%clk 0:01:37]}  f6 {[%clk 0:02:10]} 25. Nh4 {[%clk 0:01:28]}  Bb3 {[%clk 0:02:05]} 26. Nf5+ {[%clk 0:01:23]}  Kf8 {[%clk 0:02:05]} 27. Rxd8+ {[%clk 0:00:30]}  Rxd8 {[%clk 0:02:06]} 28. Kf3 {[%clk 0:00:16]}  Rd2 {[%clk 0:02:04]} 29. Ne3 {[%clk 0:00:16]}  Bxe3 {[%clk 0:02:00]} 30. Kxe3 {[%clk 0:00:15]}  Rxb2 {[%clk 0:02:01]} 31. f4 {[%clk 0:00:15]}  a4 {[%clk 0:02:00]} 32. fxe5 {[%clk 0:00:14]}  fxe5 {[%clk 0:02:00]} 33. Bh5 {[%clk 0:00:12]}  a3 {[%clk 0:02:00]} 34. Rxa3 {[%clk 0:00:12]}  Bc4 {[%clk 0:01:57]} 35. Ra8+ {[%clk 0:00:11]}  Ke7 {[%clk 0:01:57]} 36. Re8+ {[%clk 0:00:11]}  Kd6 {[%clk 0:01:55]} 37. Rd8+ {[%clk 0:00:08]}  Kc5 {[%clk 0:01:55]} 38. Rd7 {[%clk 0:00:09]}  Kxb5 {[%clk 0:01:41]} 39. Rxc7 {[%clk 0:00:09]}  g5 {[%clk 0:01:41]} 40. Rh7 {[%clk 0:00:08]}  Re2+ {[%clk 0:01:40]} 41. Bxe2 {[%clk 0:00:07]}  Bxe2 {[%clk 0:01:39]} 42. Kxe2 {[%clk 0:00:08]}  Kc4 {[%clk 0:01:39]} 43. Kd2 {[%clk 0:00:09]}  b5 {[%clk 0:01:39]} 44. Rxh6 {[%clk 0:00:09]}  b4 {[%clk 0:01:39]} 45. cxb4 {[%clk 0:00:10]}  Kxb4 {[%clk 0:01:40]} 46. Re6 {[%clk 0:00:10]} 1-0


[Site "https://www.chess.com"]